fUSD/lending_fUSD_20240116
["ID","MTS","AMOUNT","RATE_DAILY","PERIOD"]
[311756672,1705378268347,-500.0,0.00022979,2]
[311756673,1705378268356,-5075.46,0.00022979,2]
[311756674,1705378268366,-2678.5,0.00022979,2]
[311756675,1705378268375,-2990.34,0.00022979,2]
[311756676,1705378268385,-1239.55,0.00022979,2]
[311756677,1705378268394,-269.45330703,0.00022979,2]
[311756678,1705378268403,-500.0,0.00022979,2]
[311756679,1705378268413,-500.0,0.00022979,2]
[311756680,1705378268422,-500.0,0.00022979,2]
[311756681,1705378268432,-500.0,0.00022979,2]
[311756682,1705378268441,-586.36,0.00022979,2]
[311756683,1705378268450,-798.3,0.00022979,2]
[311756684,1705378268460,-2776.2,0.00022979,2]
[311756685,1705378268469,-500.0,0.00022979,2]
[311756686,1705378268479,-500.0,0.00022979,2]
[311756687,1705378268488,-500.0,0.00022979,2]
[311756688,1705378268497,-591.03,0.00022979,2]
[311756689,1705378268507,-944.22,0.00022979,2]
[311756690,1705378268518,-500.0,0.00022979,2]
[311756691,1705378268527,-500.0,0.00022979,2]
[311756692,1705378268537,-500.0,0.00022979,2]
[311756693,1705378268546,-553.87,0.00022979,2]
[311756694,1705378268556,-599.6,0.00022979,2]
[311756695,1705378268565,-1303.86,0.00022979,2]
[311756696,1705378268575,-721.89,0.00022979,2]
[311756697,1705378268584,-500.0,0.00022979,2]
[311756698,1705378268593,-500.0,0.00022979,2]
[311756699,1705378268603,-2372.65,0.00022979,2]
[311756700,1705378268612,-1097.95,0.00022979,2]
[311756701,1705378268621,-500.0,0.00022979,2]
[311756702,1705378268631,-2336.12,0.00022979,2]
[311756703,1705378268641,-500.0,0.00022979,2]
[311756704,1705378268651,-500.0,0.00022979,2]
[311756705,1705378268660,-500.0,0.00022979,2]
[311756706,1705378268670,-500.0,0.00022979,2]
[311756707,1705378268678,-515.47,0.00022979,2]
[311756708,1705378268687,-563.84,0.00022979,2]
[311756709,1705378268697,-1099.7,0.00022979,2]
[311756710,1705378268707,-2142.56,0.00022979,2]
[311756711,1705378268716,-1380.19,0.00022979,2]
[311756712,1705378268726,-1048.9,0.00022979,2]
[311756713,1705378268735,-665.01,0.00022979,2]
[311756714,1705378268745,-500.0,0.00022979,2]
[311756715,1705378268754,-1754.21,0.00022979,2]
[311756716,1705378268765,-521.97,0.00022979,2]
[311756717,1705378268774,-500.0,0.00022979,2]
[311756718,1705378268784,-1043.84,0.00022979,2]
[311756719,1705378268794,-500.0,0.00022979,2]
[311756720,1705378268803,-500.0,0.00022979,2]
[311756721,1705378268811,-500.0,0.00022979,2]
[311756722,1705378268820,-1343.04,0.00022979,2]
[311756723,1705378268830,-1260.2,0.00022979,2]
[311756724,1705378268839,-500.0,0.00022979,2]
[311756725,1705378268848,-500.0,0.00022979,2]
[311756726,1705378268858,-500.0,0.00022979,2]
[311756727,1705378268867,-3241.0,0.00022979,2]
[311756728,1705378268877,-1208.62,0.00022979,2]
[311756729,1705378268888,-500.0,0.00022979,2]
[311756730,1705378268898,-907.81,0.00022979,2]
[311756731,1705378268908,-533.74,0.00022979,2]
[311756732,1705378268916,-500.0,0.00022979,2]
[311756733,1705378268926,-500.0,0.00022979,2]
[311756734,1705378268937,-500.0,0.00022979,2]
[311756735,1705378268946,-4842.59,0.00022979,2]
[311756736,1705378268955,-3206.12,0.00022979,2]
[311756737,1705378268965,-1022.4,0.00022979,2]
[311756738,1705378268976,-500.0,0.00022979,2]
[311756739,1705378268986,-1741.46,0.00022979,2]
[311756740,1705378268995,-594.42,0.00022979,2]
[311756741,1705378269004,-500.0,0.00022979,2]
[311756742,1705378269015,-500.0,0.00022979,2]
[311756743,1705378269024,-3385.67,0.00022979,2]
[311756744,1705378269034,-500.0,0.00022979,2]
[311756745,1705378269043,-500.0,0.00022979,2]
[311756746,1705378269054,-500.0,0.00022979,2]
[311756747,1705378269064,-2382.8,0.00022979,2]
[311756748,1705378269073,-500.0,0.00022979,2]
[311756749,1705378269082,-21174.2818254,0.0002298,2]
[311756750,1705378269093,-500.0,0.0002298,2]
[311756751,1705378269102,-652.24,0.0002298,2]
[311756752,1705378269112,-500.0,0.0002298,2]
[311756753,1705378269122,-500.0,0.0002298,2]
[311756754,1705378269132,-500.0,0.0002298,2]
[311756755,1705378269141,-500.0,0.0002298,2]
[311756756,1705378269151,-194.947721,0.0002298,7]
[311756757,1705378269160,-500.0,0.0002298,2]
[311756758,1705378269169,-500.0,0.0002298,2]
[311756759,1705378269179,-500.0,0.0002298,2]
[311756760,1705378269189,-500.0,0.0002298,2]
[311756761,1705378269198,-500.0,0.0002298,2]
[311756762,1705378269208,-500.0,0.0002298,2]
[311756763,1705378269217,-668.01,0.0002298,2]
[311756764,1705378269227,-500.0,0.0002298,2]
[311756765,1705378269236,-500.0,0.0002298,2]
[311756766,1705378269245,-500.0,0.0002298,2]
[311756767,1705378269255,-804.89,0.0002298,2]
[311756768,1705378269265,-500.0,0.0002298,2]
[311756769,1705378269274,-500.0,0.0002298,2]
[311756770,1705378269284,-568.98,0.0002298,2]
[311756771,1705378269294,-500.0,0.0002298,2]
[311756772,1705378269303,-500.0,0.0002298,2]
[311756773,1705378269313,-500.0,0.0002298,2]
[311756774,1705378269323,-500.0,0.0002298,2]
[311756775,1705378269332,-500.0,0.0002298,2]
[311756776,1705378269341,-500.0,0.0002298,2]
[311756777,1705378269351,-500.0,0.0002298,2]
[311756778,1705378269360,-500.0,0.0002298,2]
[311756779,1705378269369,-500.0,0.0002298,2]
[311756780,1705378269378,-500.0,0.0002298,2]
[311756781,1705378269388,-500.0,0.0002298,2]
[311756782,1705378269398,-500.0,0.0002298,2]
[311756783,1705378269408,-500.0,0.0002298,2]
[311756784,1705378269418,-500.0,0.0002298,2]
[311756785,1705378269427,-500.0,0.0002298,2]
[311756786,1705378269436,-500.0,0.0002298,2]
[311756787,1705378269446,-500.0,0.0002298,2]
[311756788,1705378269456,-500.0,0.0002298,2]
[311756789,1705378269465,-500.0,0.0002298,2]
[311756790,1705378269475,-157.441636,0.0002298,7]
[311756791,1705378269485,-500.0,0.0002298,2]
[311756792,1705378269495,-157.28477,0.0002298,7]
[311756793,1705378269505,-151.0,0.0002298,7]
[311756794,1705378269516,-500.0,0.0002298,2]
[311756795,1705378269527,-500.0,0.0002298,2]
[311756796,1705378269536,-666.69,0.0002298,2]
[311756797,1705378269547,-500.0,0.0002298,2]
[311756798,1705378269557,-500.0,0.0002298,2]
[311756799,1705378269729,-500.0,0.0002298,2]
[311756800,1705378269740,-585.27,0.0002298,2]
[311756801,1705378269750,-500.0,0.0002298,2]
[311756802,1705378269760,-250.0,0.0002298,2]
[311756803,1705378269774,-532.52,0.0002298,2]
[311756804,1705378269784,-500.0,0.0002298,2]
[311756805,1705378269793,-500.0,0.0002298,2]
[311756806,1705378269803,-500.0,0.0002298,2]
[311756807,1705378269813,-500.0,0.0002298,2]
[311756808,1705378269822,-822.16,0.0002298,2]
[311756809,1705378269831,-1171.97,0.0002298,2]
[311756810,1705378269840,-500.0,0.0002298,2]
[311756811,1705378269850,-151.0,0.0002298,7]
[311756812,1705378269859,-500.0,0.0002298,2]
[311756813,1705378269869,-503.32,0.0002298,2]
[311756814,1705378269878,-500.0,0.0002298,2]
[311756815,1705378269888,-500.0,0.0002298,2]
[311756816,1705378269898,-500.0,0.0002298,2]
[311756817,1705378269908,-500.0,0.0002298,2]
[311756818,1705378269918,-538.64,0.0002298,2]
[311756819,1705378269928,-500.0,0.0002298,2]
[311756820,1705378269938,-500.0,0.0002298,2]
[311756821,1705378269947,-500.0,0.0002298,2]
[311756822,1705378269957,-627.01,0.0002298,2]
[311756823,1705378269967,-529.55,0.0002298,2]
[311756824,1705378269977,-615.45,0.0002298,2]
[311756825,1705378269987,-500.0,0.0002298,2]
[311756826,1705378269997,-519.25,0.0002298,2]
[311756827,1705378270006,-680.79,0.0002298,2]
[311756828,1705378270017,-624.2,0.0002298,2]
[311756829,1705378270027,-500.0,0.0002298,2]
[311756830,1705378270036,-677.22,0.0002298,2]
[311756831,1705378270046,-586.91,0.0002298,2]
[311756832,1705378270057,-500.0,0.0002298,2]
[311756833,1705378270066,-772.92,0.0002298,2]
[311756834,1705378270076,-500.0,0.0002298,2]
[311756835,1705378270085,-500.0,0.0002298,2]
[311756836,1705378270094,-966.93,0.0002298,2]
[311756837,1705378270104,-500.0,0.0002298,2]
[311756838,1705378270113,-793.42,0.0002298,2]
[311756839,1705378270124,-500.0,0.0002298,2]
[311756840,1705378270133,-500.0,0.0002298,2]
[311756841,1705378270144,-554.76,0.0002298,2]
[311756842,1705378270154,-500.0,0.0002298,2]
[311756843,1705378270164,-500.0,0.0002298,2]
[311756844,1705378270173,-539.12,0.0002298,2]
[311756845,1705378270183,-151.0,0.0002298,7]
[311756846,1705378270192,-500.0,0.0002298,2]
[311756847,1705378270202,-500.0,0.0002298,2]
[311756848,1705378270211,-266.7237726,0.0002298,2]
[311756849,1705378270221,-500.0,0.0002298,2]
[311756850,1705378270230,-607.58,0.0002298,2]
[311756851,1705378270240,-503.16,0.0002298,2]
[311756852,1705378270249,-500.0,0.0002298,2]
[311756854,1705378270259,-500.0,0.0002298,2]
[311756855,1705378270269,-500.0,0.0002298,2]
[311756856,1705378270279,-552.42,0.0002298,2]
[311756857,1705378270288,-883.93,0.0002298,2]
[311756858,1705378270298,-500.0,0.0002298,2]
[311756859,1705378270307,-520.86,0.0002298,2]
[311756860,1705378270316,-500.0,0.0002298,2]
[311756861,1705378270325,-626.47,0.0002298,2]
[311756862,1705378270335,-500.0,0.0002298,2]
[311756863,1705378270345,-614.67,0.0002298,2]
[311756864,1705378270355,-500.0,0.0002298,2]
[311756865,1705378270364,-781.65,0.0002298,2]
[311756866,1705378270374,-500.0,0.0002298,2]
[311756867,1705378270383,-872.53,0.0002298,2]
[311756868,1705378270392,-583.49681121,0.0002298,2]
[311756869,1705378270402,-775.73,0.0002298,2]
[311756870,1705378270411,-379.86944689,0.0002298,2]
[311756871,1705378270420,-500.0,0.0002298,2]
[311756872,1705378270430,-500.0,0.0002298,2]
[311756873,1705378270439,-720.98,0.0002298,2]
[311756874,1705378270449,-671.52,0.0002298,2]
[311756875,1705378270459,-500.0,0.0002298,2]
[311756876,1705378270468,-500.0,0.0002298,2]
[311756877,1705378270478,-500.0,0.0002298,2]
[311756878,1705378270487,-500.0,0.0002298,2]
[311756879,1705378270498,-705.72,0.0002298,2]
[311756880,1705378270508,-500.0,0.0002298,2]
[311756881,1705378270519,-1250.93,0.0002298,2]
[311756882,1705378270529,-618.23395602,0.0002298,2]
[311756883,1705378270539,-500.0,0.0002298,2]
[311756884,1705378270548,-500.0,0.0002298,2]
[311756885,1705378270558,-657.68,0.0002298,2]
[311756886,1705378270567,-622.67,0.0002298,2]
[311756887,1705378270577,-720.95,0.0002298,2]
[311756888,1705378270586,-556.88,0.0002298,2]
[311756889,1705378270596,-500.0,0.0002298,2]
[311756890,1705378270606,-500.0,0.0002298,2]
[311756891,1705378270615,-1048.43,0.0002298,2]
[311756892,1705378270625,-500.0,0.0002298,2]
[311756893,1705378270634,-642.22,0.0002298,2]
[311756894,1705378270644,-500.0,0.0002298,2]
[311756895,1705378270653,-282.01017783,0.0002298,2]
[311756896,1705378270662,-500.0,0.0002298,2]
[311756897,1705378270671,-572.23,0.0002298,2]
[311756898,1705378270681,-1774.11,0.0002298,2]
[311756899,1705378270690,-573.86,0.0002298,2]
[311756900,1705378270700,-500.0,0.0002298,2]
[311756901,1705378270710,-500.0,0.0002298,2]
[311756902,1705378270719,-179.26529159,0.0002298,2]
[311756903,1705378270728,-500.0,0.0002298,2]
[311756904,1705378270738,-500.0,0.0002298,2]
[311756905,1705378270747,-594.76,0.0002298,2]
[311756906,1705378270757,-1613.39,0.0002298,2]
[311756907,1705378270768,-1605.96,0.0002298,2]
[311756908,1705378270777,-589.65,0.0002298,2]
[311756909,1705378270787,-500.0,0.0002298,2]
[311756910,1705378270797,-400.61511933,0.0002298,2]
[311756911,1705378270807,-4285.28,0.0002298,2]
[311756912,1705378270816,-2316.19,0.0002298,2]
[311756913,1705378270826,-500.0,0.0002298,2]
[311756914,1705378270835,-530.59,0.0002298,2]
[311756915,1705378270845,-500.0,0.0002298,2]
[311756916,1705378270854,-1216.42,0.0002298,2]
[311756917,1705378270864,-1967.53,0.0002298,2]
[311756918,1705378270875,-516.95,0.0002298,2]
[311756919,1705378270885,-500.0,0.0002298,2]
[311756920,1705378270897,-691.21,0.0002298,2]
[311756921,1705378270906,-784.17,0.0002298,2]
[311756922,1705378270916,-782.17,0.0002298,2]
[311756923,1705378270926,-681.2,0.0002298,2]
[311756924,1705378270935,-833.11,0.0002298,2]
[311756925,1705378270945,-500.0,0.0002298,2]
[311756926,1705378270954,-722.04,0.0002298,2]
[311756927,1705378270964,-893.25,0.0002298,2]
[311756928,1705378270974,-654.5,0.0002298,2]
[311756929,1705378270984,-500.0,0.0002298,2]
[311756930,1705378270993,-597.71,0.0002298,2]
[311756931,1705378271003,-1732.01,0.0002298,2]
[311756932,1705378271012,-1017.58,0.0002298,2]
[311756933,1705378271022,-1309.14,0.0002298,2]
[311756934,1705378271031,-500.0,0.0002298,2]
[311756935,1705378271041,-975.04,0.0002298,2]
[311756936,1705378271050,-500.0,0.0002298,2]
[311756937,1705378271059,-1058.39,0.0002298,2]
[311756938,1705378271068,-381.57487848,0.0002298,2]
[311756939,1705378271077,-500.0,0.0002298,5]
[311756940,1705378271087,-686.88,0.0002298,2]
[311756941,1705378271096,-866.71,0.0002298,2]
[311756942,1705378271105,-2717.14,0.0002298,2]
[311756943,1705378271115,-500.0,0.0002298,2]
[311756944,1705378271125,-741.61,0.0002298,2]
[311756945,1705378271135,-500.0,0.0002298,2]
[311756946,1705378271145,-620.87,0.0002298,2]
[311756947,1705378271155,-300.0,0.0002298,2]
[311756948,1705378271165,-1026.1,0.0002298,2]
[311756949,1705378271175,-898.95,0.0002298,2]
[311756950,1705378271185,-3030.71,0.0002298,2]
[311756951,1705378271195,-500.0,0.0002298,2]
[311756952,1705378271205,-500.0,0.0002298,2]
[311756953,1705378271214,-810.38,0.0002298,2]
[311756954,1705378271223,-715.32,0.0002298,2]
[311756955,1705378271233,-722.27,0.0002298,2]
[311756956,1705378271243,-500.0,0.0002298,2]
[311756957,1705378271252,-500.0,0.0002298,2]
[311756958,1705378271262,-847.11,0.0002298,2]
[311756959,1705378271273,-660.23,0.0002298,2]
[311756960,1705378271281,-602.62,0.0002298,2]
[311756961,1705378271291,-627.89,0.0002298,2]
[311756962,1705378271300,-1705.45,0.0002298,2]
[311756963,1705378271309,-2403.37,0.0002298,2]
[311756964,1705378271318,-1039.82,0.0002298,2]
[311756965,1705378271327,-500.0,0.0002298,2]
[311756966,1705378271337,-323.38,0.0002298,2]
[311756967,1705378271346,-570.4,0.0002298,2]
[311756968,1705378271356,-2574.76,0.0002298,2]
[311756969,1705378271365,-1746.2,0.0002298,2]
[311756970,1705378271375,-1132.73,0.0002298,2]
[311756971,1705378271385,-500.0,0.0002298,2]
[311756972,1705378271395,-500.0,0.0002298,2]
[311756973,1705378271404,-598.31,0.0002298,2]
[311756974,1705378271414,-597.14,0.0002298,2]
[311756975,1705378271424,-640.14,0.0002298,2]
[311756976,1705378271433,-1253.06,0.0002298,2]
[311756977,1705378271444,-500.0,0.0002298,2]
[311756978,1705378271453,-942.35,0.0002298,2]
[311756979,1705378271463,-3121.21,0.0002298,2]
[311756980,1705378271474,-631.69,0.0002298,2]
[311756981,1705378271483,-629.5,0.0002298,2]
[311756982,1705378271492,-500.0,0.0002298,2]
[311756983,1705378271503,-546.29,0.0002298,2]
[311756984,1705378271513,-602.8,0.0002298,2]
[311756985,1705378271523,-739.11,0.0002298,2]
[311756986,1705378271532,-500.0,0.0002298,2]
[311756987,1705378271541,-500.0,0.0002298,2]
[311756988,1705378271551,-1387.18,0.0002298,2]
[311756989,1705378271561,-1473.84,0.0002298,2]
[311756990,1705378271570,-528.94,0.0002298,2]
[311756991,1705378271580,-500.0,0.0002298,2]
[311756992,1705378271589,-500.0,0.0002298,2]
[311756993,1705378271599,-854.0,0.0002298,2]
[311756994,1705378271609,-500.0,0.0002298,2]
[311756995,1705378271618,-607.84,0.0002298,2]
[311756996,1705378271628,-795.55,0.0002298,2]
[311756997,1705378271637,-693.09,0.0002298,2]
[311756998,1705378271647,-500.0,0.0002298,2]
[311756999,1705378271656,-500.0,0.0002298,2]
[311757000,1705378271666,-500.0,0.0002298,2]
[311757001,1705378271675,-500.0,0.0002298,2]
[311757002,1705378271685,-1434.28,0.0002298,2]
[311757003,1705378271695,-508.29,0.0002298,2]
[311757004,1705378271704,-2152.5,0.0002298,2]
[311757005,1705378271714,-600.45578543,0.0002298,2]
[311757006,1705378271723,-1145.58,0.0002298,2]
[311757007,1705378271733,-500.0,0.0002298,2]
[311757008,1705378271742,-500.0,0.0002298,2]
[311757009,1705378271752,-646.94,0.0002298,2]
[311757010,1705378271761,-1162.73,0.0002298,2]
[311757011,1705378271772,-500.0,0.0002298,2]
[311757012,1705378271782,-769.22,0.0002298,2]
[311757013,1705378271792,-555.51,0.0002298,2]
[311757014,1705378271801,-647.14,0.0002298,2]
[311757015,1705378271810,-1021.57,0.0002298,2]
[311757016,1705378271819,-606.44,0.0002298,2]
[311757017,1705378271829,-500.0,0.00022981,2]
[311757018,1705378271838,-500.0,0.00022981,2]
[311757019,1705378271847,-500.0,0.00022981,2]
[311757020,1705378271856,-500.0,0.00022981,2]
[311757021,1705378271866,-500.0,0.00022981,2]
[311757022,1705378271875,-532.15,0.00022981,2]
[311757023,1705378271885,-575.17,0.00022981,2]
[311757024,1705378271895,-500.0,0.00022981,2]
[311757025,1705378271905,-640.03387074,0.00022981,2]
[311757026,1705378271914,-500.0,0.00022981,2]
[311757027,1705378271924,-500.0,0.00022981,2]
[311757028,1705378271934,-500.0,0.00022981,2]
[311757029,1705378271943,-500.0,0.00022981,2]
[311757030,1705378272273,-500.0,0.00022981,2]
[311757031,1705378272301,-500.0,0.00022981,2]
[311757032,1705378272310,-500.0,0.00022981,2]
[311757033,1705378272321,-500.0,0.00022981,2]
[311757034,1705378272330,-500.0,0.00022981,2]
[311757035,1705378272340,-500.0,0.00022981,2]
[311757036,1705378272349,-500.0,0.00022981,2]
[311757037,1705378272358,-744.59,0.00022981,2]
[311757038,1705378272368,-500.0,0.00022981,2]
[311757039,1705378272378,-699.75,0.00022981,2]
[311757040,1705378272388,-280.8884747,0.00022981,2]
[311757041,1705378272397,-591.21,0.00022981,2]
[311757042,1705378272406,-500.0,0.00022981,2]
[311757043,1705378272415,-579.24,0.00022981,2]
[311757044,1705378272424,-500.0,0.00022981,2]
[311757045,1705378272434,-500.0,0.00022981,2]
[311757046,1705378272443,-500.0,0.00022981,2]
[311757047,1705378272452,-600.03,0.00022981,2]
[311757048,1705378272462,-500.0,0.00022981,2]
[311757049,1705378272471,-500.0,0.00022981,2]
[311757050,1705378272481,-500.0,0.00022981,2]
[311757051,1705378272491,-613.57,0.00022981,2]
[311757052,1705378272500,-514.63,0.00022981,2]
[311757053,1705378272510,-1004.69,0.00022981,2]
[311757054,1705378272520,-296.19270634,0.00022981,2]
[311757055,1705378272529,-777.46,0.00022981,2]
[311757056,1705378272539,-500.0,0.00022981,2]
[311757057,1705378272551,-650.94,0.00022981,2]
[311757058,1705378272561,-500.0,0.00022981,2]
[311757059,1705378272570,-598.0,0.00022981,2]
[311757060,1705378272580,-562.18,0.00022981,2]
[311757061,1705378272589,-500.0,0.00022981,2]
[311757062,1705378272598,-500.0,0.00022981,2]
[311757063,1705378272608,-566.66896451,0.00022981,2]
[311757064,1705378272617,-560.2,0.00022981,2]
[311757065,1705378272627,-502.82,0.00022981,2]
[311757066,1705378272637,-500.0,0.00022981,2]
[311757067,1705378272647,-500.0,0.00022981,2]
[311757068,1705378272657,-501.54,0.00022981,2]
[311757069,1705378272667,-1021.7,0.00022981,2]
[311757070,1705378272677,-529.71,0.00022981,2]
[311757071,1705378272687,-832.52,0.00022981,2]
[311757072,1705378272698,-500.0,0.00022981,2]
[311757073,1705378272708,-527.53,0.00022981,2]
[311757074,1705378272718,-500.0,0.00022981,2]
[311757075,1705378272727,-500.0,0.00022981,2]
[311757076,1705378272738,-500.0,0.00022981,2]
[311757077,1705378272747,-500.0,0.00022981,2]
[311757078,1705378272758,-500.0,0.00022981,2]
[311757079,1705378272768,-1083.52,0.00022981,2]
[311757080,1705378272777,-231.30732241,0.00022981,2]
[311757081,1705378272787,-500.0,0.00022981,2]
[311757082,1705378272796,-1094.17,0.00022981,2]
[311757083,1705378272805,-768.86,0.00022981,2]
[311757084,1705378272815,-500.0,0.00022981,2]
[311757085,1705378272824,-512.41,0.00022981,2]
[311757086,1705378272834,-827.48,0.00022981,2]
[311757087,1705378272843,-676.55,0.00022981,2]
[311757088,1705378272852,-500.0,0.00022981,2]
[311757089,1705378272862,-609.19,0.00022981,2]
[311757090,1705378272872,-614.6,0.00022981,2]
[311757091,1705378272884,-619.2,0.00022981,2]
[311757092,1705378272893,-738.17,0.00022981,2]
[311757093,1705378272902,-500.0,0.00022981,2]
[311757094,1705378272912,-884.85,0.00022981,2]
[311757095,1705378272923,-500.0,0.00022981,2]
[311757096,1705378272932,-500.0,0.00022981,2]
[311757097,1705378272942,-531.46,0.00022981,2]
[311757098,1705378272952,-500.0,0.00022981,2]
[311757099,1705378272962,-500.0,0.00022981,2]
[311757100,1705378272972,-955.88,0.00022981,2]
[311757101,1705378272981,-500.0,0.00022981,2]
[311757102,1705378272991,-628.83127586,0.00022981,2]
[311757103,1705378273001,-621.19,0.00022981,2]
[311757104,1705378273010,-991.97,0.00022981,2]
[311757105,1705378273021,-195.22,0.00022981,2]
[311757106,1705378273030,-500.0,0.00022981,2]
[311757107,1705378273039,-564.79,0.00022981,2]
[311757108,1705378273049,-507.62,0.00022981,2]
[311757109,1705378273059,-500.0,0.00022981,2]
[311757110,1705378273068,-549.65,0.00022981,2]
[311757111,1705378273078,-935.14,0.00022981,2]
[311757112,1705378273087,-1085.61,0.00022981,2]
[311757113,1705378273097,-500.0,0.00022981,2]
[311757114,1705378273106,-666.01,0.00022981,2]
[311757115,1705378273115,-592.73,0.00022981,2]
[311757116,1705378273125,-604.09,0.00022981,2]
[311757117,1705378273136,-621.82,0.00022981,2]
[311757118,1705378273145,-500.0,0.00022981,2]
[311757119,1705378273155,-790.79,0.00022981,2]
[311757120,1705378273165,-743.23,0.00022981,2]
[311757121,1705378273176,-945.33,0.00022981,2]
[311757122,1705378273187,-500.0,0.00022981,2]
[311757123,1705378273197,-703.31,0.00022981,2]
[311757124,1705378273206,-500.0,0.00022981,2]
[311757125,1705378273215,-606.03,0.00022981,2]
[311757126,1705378273225,-1519.81,0.00022981,2]
[311757127,1705378273234,-538.63266576,0.00022981,2]
[311757128,1705378273243,-651.24,0.00022981,2]
[311757129,1705378273253,-1081.4,0.00022981,2]
[311757130,1705378273262,-866.46,0.00022981,2]
[311757131,1705378273273,-1066.26,0.00022981,2]
[311757132,1705378273284,-918.86,0.00022981,2]
[311757133,1705378273294,-689.27,0.00022981,2]
[311757134,1705378273304,-2692.26,0.00022981,2]
[311757135,1705378273313,-1064.88,0.00022981,2]
[311757136,1705378273323,-731.44,0.00022981,2]
[311757137,1705378273332,-2542.67,0.00022981,2]
[311757138,1705378273341,-500.0,0.00022981,2]
[311757139,1705378273351,-922.64,0.00022981,2]
[311757140,1705378273360,-843.79,0.00022981,2]
[311757141,1705378273369,-609.44,0.00022981,2]
[311757142,1705378273378,-549.79,0.00022981,2]
[311757143,1705378273387,-602.2,0.00022981,2]
[311757144,1705378273397,-942.58,0.00022981,2]
[311757145,1705378273406,-1000.84,0.00022981,2]
[311757146,1705378273416,-831.08,0.00022981,2]
[311757147,1705378273426,-5796.43840405,0.00022997,2]
[311757148,1705378273435,-2482.159856,0.00022998,2]
[311757149,1705378273445,-273.23265285,0.00022998,2]
[311757150,1705378273454,-52696.59026272,0.00022998,2]
[311757151,1705378274035,-1074.61995,0.00022998,2]
[311757152,1705378274163,-645.61,0.0002243,2]
[311757153,1705378274172,-305.65132272,0.00022998,2]
[311757154,1705378274184,-455.23866117,0.00022998,2]
[311757155,1705378274195,-350.26905264,0.00022998,2]
[311757156,1705378274207,-24857.23506475,0.00022998,2]
[311757157,1705378274218,-404.64145571,0.00022998,2]
[311757158,1705378274229,-4906.23264509,0.00022998,2]
[311757159,1705378275367,-500.0,0.00022156,2]
[311757160,1705378275378,-500.0,0.00022156,2]
[311757161,1705378275387,-734.91,0.00022157,2]
[311757162,1705378275396,-500.0,0.00022157,2]
[311757163,1705378275406,-246.4178554,0.00022157,2]
[311757164,1705378275421,-253.5821446,0.00022157,2]
[311757165,1705378275430,-275.77989604,0.00022158,2]
[311757166,1705378275477,-224.22010396,0.00022158,2]
[311757167,1705378275488,-500.0,0.00022159,2]
[311757168,1705378275497,-500.0,0.0002243,2]
[311757169,1705378275507,-451.25492936,0.0002243,2]
[311757170,1705378276137,-500.0,0.00022156,2]
[311757171,1705378276147,-14.22352584,0.00022157,2]
[311757172,1705378276176,-485.77647416,0.00022157,2]